fUSD/lending_fUSD_20240119
["ID","MTS","AMOUNT","RATE_DAILY","PERIOD"]
[312144135,1705668643778,-500.0,0.00022191,2]
[312144137,1705668643790,-500.0,0.00022191,2]
[312144139,1705668643801,-8755.84,0.00022191,2]
[312144141,1705668643811,-500.0,0.00022191,2]
[312144143,1705668643821,-2217.09,0.00022191,2]
[312144145,1705668643832,-11001.55,0.00022191,2]
[312144147,1705668643843,-792.53,0.00022191,2]
[312144149,1705668643853,-489.81173385,0.00022191,2]
[312144152,1705668643864,-500.0,0.00022191,2]
[312144154,1705668643874,-500.0,0.00022191,2]
[312144156,1705668643886,-13798.21,0.00022191,2]
[312144158,1705668643896,-1827.02,0.00022191,2]
[312144160,1705668643907,-618.33,0.00022191,2]
[312144162,1705668643917,-500.0,0.00022191,2]
[312144164,1705668643928,-812.02,0.00022191,2]
[312144166,1705668643938,-1000.0,0.00022191,2]
[312144168,1705668643952,-903.97,0.00022191,2]
[312144170,1705668643963,-504.89,0.00022191,2]
[312144172,1705668643973,-3738.22,0.00022191,2]
[312144174,1705668643984,-500.0,0.00022191,2]
[312144176,1705668643995,-500.0,0.00022191,2]
[312144178,1705668644006,-4380.75,0.00022191,2]
[312144180,1705668644016,-308.78888003,0.00022191,2]
[312144182,1705668644027,-500.0,0.00022191,2]
[312144184,1705668644038,-500.0,0.00022191,2]
[312144186,1705668644049,-500.0,0.00022191,2]
[312144188,1705668644060,-1799.99,0.00022191,2]
[312144190,1705668644070,-34261.21,0.00022191,2]
[312144192,1705668644080,-600.61,0.00022191,2]
[312144194,1705668644092,-692.54,0.00022191,2]
[312144196,1705668644103,-656.98,0.00022191,2]
[312144198,1705668644113,-500.0,0.00022191,2]
[312144200,1705668644124,-1851.97,0.00022191,2]
[312144202,1705668644135,-2515.59,0.00022191,2]
[312144204,1705668644146,-522.91,0.00022191,2]
[312144206,1705668644156,-500.0,0.00022191,2]
[312144208,1705668644167,-1862.57,0.00022191,2]
[312144210,1705668644178,-500.0,0.00022191,2]
[312144212,1705668644188,-500.0,0.00022191,2]
[312144214,1705668644199,-500.0,0.00022191,2]
[312144216,1705668644215,-500.0,0.00022191,2]
[312144218,1705668644226,-500.0,0.00022191,2]
[312144220,1705668644236,-740.25,0.00022191,2]
[312144222,1705668644246,-15263.72,0.00022191,2]
[312144224,1705668644256,-764.01,0.00022191,2]
[312144226,1705668644266,-500.0,0.00022191,2]
[312144228,1705668644277,-1534.09,0.00022191,2]
[312144230,1705668644287,-340.91,0.00022191,2]
[312144232,1705668644298,-776.58,0.00022191,2]
[312144234,1705668644309,-500.0,0.00022191,2]
[312144236,1705668644319,-500.0,0.00022191,2]
[312144238,1705668644329,-500.0,0.00022191,2]
[312144240,1705668644340,-2524.96,0.00022191,2]
[312144242,1705668644350,-2113.2,0.00022191,2]
[312144244,1705668644361,-500.0,0.00022191,2]
[312144246,1705668644372,-500.0,0.00022191,2]
[312144248,1705668644383,-1603.28,0.00022191,2]
[312144250,1705668644393,-519.57384596,0.00022191,2]
[312144252,1705668644404,-500.0,0.00022191,2]
[312144254,1705668644415,-500.0,0.00022191,2]
[312144256,1705668644425,-769.21,0.00022191,2]
[312144258,1705668644435,-1050.22,0.00022191,2]
[312144260,1705668644446,-501.19,0.00022191,2]
[312144262,1705668644457,-500.0,0.00022191,2]
[312144264,1705668644466,-1988.05,0.00022191,2]
[312144266,1705668644477,-650.2,0.00022191,2]
[312144268,1705668644488,-1135.01,0.00022191,2]
[312144270,1705668644499,-1115.38,0.00022191,2]
[312144272,1705668644510,-874.95,0.00022191,2]
[312144274,1705668644520,-500.0,0.00022191,2]
[312144276,1705668644530,-3489.6,0.00022191,2]
[312144278,1705668644540,-500.0,0.00022191,2]
[312144280,1705668644551,-2081.31,0.00022191,2]
[312144282,1705668644561,-18355.87,0.00022191,2]
[312144284,1705668644571,-551.74,0.00022191,2]
[312144286,1705668644582,-2442.06,0.00022191,2]
[312144288,1705668644593,-500.0,0.00022191,2]
[312144290,1705668644604,-1697.59,0.00022191,2]
[312144292,1705668644614,-623.38,0.00022191,2]
[312144294,1705668644625,-1868.23,0.00022191,2]
[312144296,1705668644636,-500.0,0.00022191,2]
[312144299,1705668644647,-500.0,0.00022191,2]
[312144301,1705668644658,-1342.06,0.00022191,2]
[312144303,1705668644669,-741.89,0.00022191,2]
[312144304,1705668644680,-500.0,0.00022191,2]
[312144306,1705668644691,-23054.67,0.00022191,2]
[312144308,1705668644703,-500.0,0.00022191,2]
[312144310,1705668644714,-7478.37,0.00022191,2]
[312144312,1705668644724,-1663.98,0.00022191,2]
[312144314,1705668644736,-2185.92,0.00022191,2]
[312144316,1705668644746,-241.67821388,0.00022191,2]
[312144318,1705668644759,-516.72,0.00022191,2]
[312144321,1705668644770,-500.0,0.00022191,2]
[312144323,1705668644780,-2592.46,0.00022191,2]
[312144325,1705668644791,-2257.66,0.00022191,2]
[312144327,1705668644803,-500.0,0.00022191,2]
[312144329,1705668644814,-3618.18,0.00022191,2]
[312144331,1705668644824,-500.0,0.00022191,2]
[312144332,1705668644835,-611.29,0.00022191,2]
[312144335,1705668644848,-1647.07,0.00022191,2]
[312144336,1705668644858,-5554.35,0.00022191,2]
[312144339,1705668644869,-1366.08,0.00022191,2]
[312144340,1705668644879,-2070.72,0.00022191,2]
[312144342,1705668644890,-500.0,0.00022191,2]
[312144344,1705668644901,-863.88,0.00022191,2]
[312144346,1705668644911,-500.0,0.00022191,2]
[312144348,1705668644921,-1733.73,0.00022191,2]
[312144351,1705668644934,-2785.45,0.00022191,2]
[312144353,1705668644945,-500.0,0.00022191,2]
[312144354,1705668644956,-2603.14,0.00022191,2]
[312144357,1705668644969,-1065.72,0.00022191,2]
[312144359,1705668644979,-500.0,0.00022191,2]
[312144360,1705668644990,-641.72,0.00022191,2]
[312144362,1705668645000,-500.0,0.00022191,2]
[312144364,1705668645010,-500.0,0.00022191,2]
[312144367,1705668645022,-1205.19,0.00022191,2]
[312144369,1705668645032,-2767.18,0.00022191,2]
[312144371,1705668645043,-321.43669763,0.00022221,2]
[312144372,1705668645053,-157.62,0.00022255,2]
[312144374,1705668645064,-209.66429937,0.00022365,2]
[312144376,1705668645075,-3637.81230205,0.00022365,2]
[312144378,1705668645087,-209.79,0.00022387,2]
[312144380,1705668645097,-500.0,0.00022465,2]
[312144382,1705668645109,-500.0,0.00022465,2]
[312144384,1705668645120,-500.0,0.00022465,2]
[312144386,1705668645130,-500.0,0.00022465,2]
[312144389,1705668645142,-500.0,0.00022465,2]
[312144390,1705668645152,-222.20964376,0.00022465,2]
[312144392,1705668645163,-665.32,0.00022465,2]
[312144394,1705668645173,-500.0,0.00022465,2]
[312144397,1705668645185,-843.45,0.00022465,2]
[312144398,1705668645195,-500.0,0.00022465,2]
[312144400,1705668645206,-757.41,0.00022465,2]
[312144402,1705668645217,-500.0,0.00022465,2]
[312144404,1705668645228,-500.0,0.00022465,2]
[312144406,1705668645239,-816.39,0.00022465,2]
[312144408,1705668645249,-500.0,0.00022465,2]
[312144410,1705668645260,-500.0,0.00022465,2]
[312144412,1705668645270,-500.0,0.00022465,2]
[312144414,1705668645281,-500.0,0.00022465,2]
[312144416,1705668645292,-1959.81,0.00022465,5]
[312144418,1705668645304,-500.0,0.00022465,2]
[312144421,1705668645315,-614.41,0.00022465,2]
[312144423,1705668645325,-1608.19,0.00022465,2]
[312144425,1705668645337,-500.0,0.00022465,2]
[312144426,1705668645349,-530.75935386,0.00022465,2]
[312144427,1705668645359,-600.57428814,0.00022465,2]
[312144428,1705668645370,-8755.84,0.00022465,2]
[312144429,1705668645382,-500.0,0.00022465,2]
[312144430,1705668645393,-2217.09,0.00022465,2]
[312144431,1705668645404,-11001.55,0.00022465,2]
[312144432,1705668645415,-792.53,0.00022465,2]
[312144434,1705668645426,-500.0,0.00022465,2]
[312144436,1705668645437,-500.0,0.00022465,2]
[312144438,1705668645447,-13798.21,0.00022465,2]
[312144440,1705668645458,-1827.02,0.00022465,2]
[312144442,1705668645469,-618.33,0.00022465,2]
[312144444,1705668645479,-500.0,0.00022465,2]
[312144446,1705668645490,-812.02,0.00022465,2]
[312144448,1705668645501,-1000.0,0.00022465,2]
[312144450,1705668645512,-903.97,0.00022465,2]
[312144452,1705668645522,-504.89,0.00022465,2]
[312144454,1705668645532,-3738.22,0.00022465,2]
[312144456,1705668645543,-500.0,0.00022465,2]
[312144458,1705668645553,-500.0,0.00022465,2]
[312144460,1705668645563,-4380.75,0.00022465,2]
[312144462,1705668645574,-500.0,0.00022465,2]
[312144464,1705668645585,-500.0,0.00022465,2]
[312144466,1705668645596,-500.0,0.00022465,2]
[312144469,1705668645607,-1799.99,0.00022465,2]
[312144471,1705668645618,-34261.21,0.00022465,2]
[312144473,1705668645628,-600.61,0.00022465,2]
[312144474,1705668645639,-692.54,0.00022465,2]
[312144477,1705668645650,-656.98,0.00022465,2]
[312144478,1705668645661,-500.0,0.00022465,2]
[312144481,1705668645672,-1851.97,0.00022465,2]
[312144483,1705668645682,-2515.59,0.00022465,2]
[312144485,1705668645693,-522.91,0.00022465,2]
[312144487,1705668645704,-500.0,0.00022465,2]
[312144489,1705668645715,-1862.57,0.00022465,2]
[312144491,1705668645726,-500.0,0.00022465,2]
[312144493,1705668645736,-521.08139113,0.00022465,2]
[312144495,1705668645747,-500.0,0.00022465,2]
[312144497,1705668645757,-500.0,0.00022465,2]
[312144499,1705668645767,-500.0,0.00022465,2]
[312144500,1705668645778,-740.25,0.00022465,2]
[312144503,1705668645790,-764.01,0.00022465,2]
[312144505,1705668645800,-15263.72,0.00022465,2]
[312144506,1705668645811,-500.0,0.00022465,2]
[312144508,1705668645822,-1534.09,0.00022465,2]
[312144511,1705668645833,-776.58,0.00022465,2]
[312144512,1705668645844,-500.0,0.00022465,2]
[312144514,1705668645855,-500.0,0.00022465,2]
[312144517,1705668645865,-500.0,0.00022465,2]
[312144519,1705668645875,-2524.96,0.00022465,2]
[312144520,1705668645886,-2113.2,0.00022465,2]
[312144522,1705668645898,-462.32694126,0.00022465,2]
[312144524,1705668645908,-500.0,0.00022465,2]
[312144527,1705668645920,-1603.28,0.00022465,2]
[312144529,1705668645930,-500.0,0.00022465,2]
[312144531,1705668645941,-500.0,0.00022465,2]
[312144533,1705668645953,-769.21,0.00022465,2]
[312144535,1705668645967,-1050.22,0.00022465,2]
[312144537,1705668645978,-501.19,0.00022465,2]
[312144539,1705668645988,-500.0,0.00022465,2]
[312144541,1705668645999,-1988.05,0.00022465,2]
[312144543,1705668646010,-650.2,0.00022465,2]
[312144545,1705668646022,-1135.01,0.00022465,2]
[312144547,1705668646033,-1115.38,0.00022465,2]
[312144549,1705668646044,-874.95,0.00022465,2]
[312144551,1705668646054,-500.0,0.00022465,2]
[312144553,1705668646065,-3489.6,0.00022465,2]
[312144555,1705668646076,-500.0,0.00022465,2]
[312144557,1705668646089,-2081.31,0.00022465,2]
[312144559,1705668646100,-18355.87,0.00022465,2]
[312144561,1705668646110,-551.74,0.00022465,2]
[312144563,1705668646120,-2442.06,0.00022465,2]
[312144565,1705668646130,-500.0,0.00022465,2]
[312144568,1705668646141,-1697.59,0.00022465,2]
[312144570,1705668646152,-623.38,0.00022465,2]
[312144573,1705668646162,-1868.23,0.00022465,2]
[312144575,1705668646173,-500.0,0.00022465,2]
[312144577,1705668646183,-500.0,0.00022465,2]
[312144579,1705668646194,-1342.06,0.00022465,2]
[312144581,1705668646205,-741.89,0.00022465,2]
[312144583,1705668646219,-500.0,0.00022465,2]
[312144586,1705668646231,-23054.67,0.00022465,2]
[312144589,1705668646241,-500.0,0.00022465,2]
[312144592,1705668646253,-7478.37,0.00022465,2]
[312144595,1705668646265,-1663.98,0.00022465,2]
[312144598,1705668646275,-2185.92,0.00022465,2]
[312144601,1705668646286,-516.72,0.00022465,2]
[312144604,1705668646298,-500.0,0.00022465,2]
[312144606,1705668646309,-2592.46,0.00022465,2]
[312144608,1705668646319,-2257.66,0.00022465,2]
[312144610,1705668646331,-500.0,0.00022465,2]
[312144612,1705668646345,-3618.18,0.00022465,2]
[312144614,1705668646356,-500.0,0.00022465,2]
[312144616,1705668646366,-611.29,0.00022465,2]
[312144618,1705668646377,-1647.07,0.00022465,2]
[312144620,1705668646388,-5554.35,0.00022465,2]
[312144622,1705668646399,-1366.08,0.00022465,2]
[312144624,1705668646410,-2070.72,0.00022465,2]
[312144626,1705668646420,-500.0,0.00022465,2]
[312144628,1705668646431,-863.88,0.00022465,2]
[312144630,1705668646440,-500.0,0.00022465,2]
[312144632,1705668646451,-1733.73,0.00022465,2]
[312144634,1705668646461,-2785.45,0.00022465,2]
[312144636,1705668646471,-500.0,0.00022465,2]
[312144638,1705668646481,-2603.14,0.00022465,2]
[312144640,1705668646492,-1065.72,0.00022465,2]
[312144642,1705668646502,-500.0,0.00022465,2]
[312144644,1705668646513,-641.72,0.00022465,2]
[312144646,1705668646523,-500.0,0.00022465,2]
[312144648,1705668646534,-500.0,0.00022465,2]
[312144650,1705668646545,-1205.19,0.00022465,2]
[312144652,1705668646555,-2767.18,0.00022465,2]
[312144654,1705668646566,-153.05,0.000225,2]
[312144656,1705668646576,-3637.81230197,0.00022585,2]
[312144658,1705668646589,-180.0,0.00022603,2]
[312144660,1705668646599,-321.43669763,0.00022655,2]
[312144662,1705668646610,-155.0,0.00022701,2]
[312144664,1705668646620,-500.0,0.00022739,2]
[312144666,1705668646631,-500.0,0.00022739,2]
[312144668,1705668646642,-500.0,0.00022739,2]
[312144671,1705668646662,-500.0,0.00022739,2]
[312144673,1705668646673,-500.0,0.00022739,2]
[312144675,1705668646683,-665.32,0.00022739,2]
[312144677,1705668646693,-500.0,0.00022739,2]
[312144679,1705668646703,-843.45,0.00022739,2]
[312144682,1705668646714,-500.0,0.00022739,2]
[312144683,1705668646725,-757.41,0.00022739,2]
[312144685,1705668646735,-500.0,0.00022739,2]
[312144688,1705668646746,-500.0,0.00022739,2]
[312144690,1705668646756,-816.39,0.00022739,2]
[312144692,1705668646767,-500.0,0.00022739,2]
[312144694,1705668646777,-182.55722779,0.00022739,2]
[312144696,1705668646787,-500.0,0.00022739,2]
[312144698,1705668646798,-500.0,0.00022739,2]
[312144700,1705668646808,-1959.81,0.00022739,5]
[312144702,1705668646818,-500.0,0.00022739,2]
[312144704,1705668646828,-614.41,0.00022739,2]
[312144706,1705668646839,-1608.19,0.00022739,2]
[312144708,1705668646849,-500.0,0.00022739,2]
[312144710,1705668646859,-8755.84,0.00022739,2]
[312144712,1705668646870,-556.02051237,0.00022739,2]
[312144714,1705668646880,-2217.09,0.00022739,2]
[312144716,1705668646890,-11001.55,0.00022739,2]
[312144717,1705668646900,-792.53,0.00022739,2]
[312144720,1705668646911,-500.0,0.00022739,2]
[312144722,1705668646922,-500.0,0.00022739,2]
[312144724,1705668646934,-13798.21,0.00022739,2]
[312144726,1705668646944,-1827.02,0.00022739,2]
[312144728,1705668646959,-618.33,0.00022739,2]
[312144729,1705668646970,-614.37488692,0.00022739,2]
[312144730,1705668646980,-812.02,0.00022739,2]
[312144731,1705668646991,-1000.0,0.00022739,2]
[312144732,1705668647002,-903.97,0.00022739,2]
[312144733,1705668647013,-504.89,0.00022739,2]
[312144734,1705668647024,-3738.22,0.00022739,2]
[312144735,1705668647035,-500.0,0.00022739,2]
[312144737,1705668647045,-500.0,0.00022739,2]
[312144739,1705668647056,-4380.75,0.00022739,2]
[312144741,1705668647067,-500.0,0.00022739,2]
[312144742,1705668647077,-500.0,0.00022739,2]
[312144743,1705668647088,-1799.99,0.00022739,2]
[312144744,1705668647098,-500.0,0.00022739,2]
[312144745,1705668647109,-34261.21,0.00022739,2]
[312144746,1705668647119,-600.61,0.00022739,2]
[312144747,1705668647129,-692.54,0.00022739,2]
[312144751,1705668647286,-656.98,0.00022739,2]
[312144755,1705668647356,-1851.97,0.00022739,2]
[312144757,1705668647368,-2515.59,0.00022739,2]
[312144759,1705668647379,-500.0,0.00022739,2]
[312144761,1705668647390,-522.91,0.00022739,2]
[312144763,1705668647401,-500.0,0.00022739,2]
[312144765,1705668647412,-1862.57,0.00022739,2]
[312144766,1705668647422,-500.0,0.00022739,2]
[312144767,1705668647432,-500.0,0.00022739,2]
[312144768,1705668647442,-500.0,0.00022739,2]
[312144769,1705668647453,-500.0,0.00022739,2]
[312144770,1705668647463,-740.25,0.00022739,2]
[312144771,1705668647473,-764.01,0.00022739,2]
[312144772,1705668647483,-15263.72,0.00022739,2]
[312144773,1705668647493,-500.0,0.00022739,2]
[312144775,1705668647504,-1534.09,0.00022739,2]
[312144777,1705668647518,-776.58,0.00022739,2]
[312144779,1705668647529,-500.0,0.00022739,2]
[312144781,1705668647540,-500.0,0.00022739,2]
[312144783,1705668647551,-500.0,0.00022739,2]
[312144785,1705668647561,-2524.96,0.00022739,2]
[312144787,1705668647572,-2113.2,0.00022739,2]
[312144789,1705668647582,-500.0,0.00022739,2]
[312144790,1705668647594,-1603.28,0.00022739,2]
[312144792,1705668647604,-500.0,0.00022739,2]
[312144794,1705668647614,-500.0,0.00022739,2]
[312144796,1705668647625,-769.21,0.00022739,2]
[312144798,1705668647636,-1050.22,0.00022739,2]
[312144800,1705668647647,-501.19,0.00022739,2]
[312144802,1705668647658,-500.0,0.00022739,2]
[312144804,1705668647669,-1988.05,0.00022739,2]
[312144806,1705668647680,-650.2,0.00022739,2]
[312144808,1705668647690,-1135.01,0.00022739,2]
[312144810,1705668647701,-1115.38,0.00022739,2]
[312144812,1705668647711,-874.95,0.00022739,2]
[312144814,1705668647722,-500.0,0.00022739,2]
[312144816,1705668647734,-3489.6,0.00022739,2]
[312144818,1705668647745,-500.0,0.00022739,2]
[312144820,1705668647755,-2081.31,0.00022739,2]
[312144822,1705668647768,-18355.87,0.00022739,2]
[312144824,1705668647778,-551.74,0.00022739,2]
[312144826,1705668647788,-2442.06,0.00022739,2]
[312144828,1705668647798,-500.0,0.00022739,2]
[312144829,1705668647808,-1697.59,0.00022739,2]
[312144830,1705668647819,-623.38,0.00022739,2]
[312144831,1705668647830,-1868.23,0.00022739,2]
[312144832,1705668647843,-522.56063986,0.00022739,2]
[312144833,1705668647853,-500.0,0.00022739,2]
[312144834,1705668647864,-1342.06,0.00022739,2]
[312144835,1705668647875,-741.89,0.00022739,2]
[312144836,1705668647886,-500.0,0.00022739,2]
[312144837,1705668647897,-23054.67,0.00022739,2]
[312144838,1705668647907,-500.0,0.00022739,2]
[312144839,1705668647919,-7478.37,0.00022739,2]
[312144840,1705668647929,-1663.98,0.00022739,2]
[312144841,1705668647940,-2185.92,0.00022739,2]
[312144842,1705668647955,-516.72,0.00022739,2]
[312144843,1705668647966,-500.0,0.00022739,2]
[312144844,1705668647976,-2592.46,0.00022739,2]
[312144845,1705668647987,-2257.66,0.00022739,2]
[312144846,1705668647998,-500.0,0.00022739,2]
[312144847,1705668648009,-3618.18,0.00022739,2]
[312144848,1705668648020,-500.0,0.00022739,2]
[312144849,1705668648030,-611.29,0.00022739,2]
[312144850,1705668648044,-1647.07,0.00022739,2]
[312144851,1705668648055,-5554.35,0.00022739,2]
[312144852,1705668648065,-1366.08,0.00022739,2]
[312144853,1705668648077,-2070.72,0.00022739,2]
[312144854,1705668648087,-500.0,0.00022739,2]
[312144856,1705668648098,-863.88,0.00022739,2]
[312144857,1705668648108,-500.0,0.00022739,2]
[312144859,1705668648119,-1733.73,0.00022739,2]
[312144861,1705668648129,-500.0,0.00022739,2]
[312144863,1705668648140,-2785.45,0.00022739,2]
[312144866,1705668648151,-1065.72,0.00022739,2]
[312144868,1705668648162,-2603.14,0.00022739,2]
[312144870,1705668648172,-500.0,0.00022739,2]
[312144871,1705668648183,-641.72,0.00022739,2]
[312144873,1705668648194,-500.0,0.00022739,2]
[312144875,1705668648204,-500.0,0.00022739,2]
[312144877,1705668648214,-1205.19,0.00022739,2]
[312144879,1705668648225,-2767.18,0.00022739,2]
[312144880,1705668648235,-394.95584771,0.00022743,2]
[312144882,1705668648246,-6972.1954,0.00022775,2]
[312144884,1705668648256,-3637.81230197,0.00022805,2]
[312144885,1705668648267,-314.1207076,0.00022857,2]
[312144888,1705668648278,-11978.80617538,0.00022866,2]
[312144890,1705668648289,-384.15296472,0.00022867,2]
[312144891,1705668648300,-1505.0998422,0.00022867,2]
[312144892,1705668648311,-164.22846198,0.00022867,2]
[312144893,1705668648321,-861.34874836,0.00022867,2]
[312144894,1705668648332,-726.45127663,0.00022868,2]
[312144895,1705668648343,-2526.96202272,0.00022868,2]
[312144896,1705668648354,-1708.60534463,0.00022868,2]
[312144897,1705668648365,-12818.17334379,0.00022868,2]
[312144898,1705668648375,-3185.62367316,0.00022868,2]
[312144899,1705668648386,-6819.469,0.00022869,2]
[312144900,1705668648397,-503.44455157,0.00022869,2]
[312144901,1705668648408,-629.328,0.00022872,2]
[312144902,1705668648419,-500.0,0.00022874,2]
[312144903,1705668648430,-5000.0,0.00022875,2]
[312144904,1705668648441,-260.08415108,0.00022876,6]
[312144905,1705668648452,-152.32647706,0.000229,2]
[312144906,1705668648465,-800.0,0.00022959,2]
[312144907,1705668648476,-1300.5,0.00022966,2]
[312144908,1705668648487,-909.04,0.00022966,2]
[312144909,1705668648497,-500.0,0.00022966,2]
[312144911,1705668648507,-500.0,0.00022966,2]
[312144912,1705668648517,-500.0,0.00022966,2]
[312144913,1705668648527,-500.0,0.00022966,2]
[312144914,1705668648538,-993.98,0.00022966,2]
[312144915,1705668648549,-500.0,0.00022966,2]
[312144916,1705668648560,-828.47,0.00022966,2]
[312144917,1705668648571,-728.18,0.00022966,2]
[312144918,1705668648582,-500.0,0.00022966,2]
[312144919,1705668648594,-500.0,0.00022966,2]
[312144920,1705668648605,-773.7,0.00022966,2]
[312144921,1705668648616,-845.1,0.00022966,2]
[312144922,1705668648626,-606.15,0.00022966,2]
[312144923,1705668648637,-893.69,0.00022966,2]
[312144924,1705668648649,-619.37,0.00022966,2]
[312144925,1705668648660,-914.09,0.00022966,2]
[312144926,1705668648670,-1078.06,0.00022966,2]
[312144927,1705668648681,-695.7,0.00022966,2]
[312144928,1705668648692,-1102.35,0.00022966,2]
[312144929,1705668648702,-500.0,0.00022966,2]
[312144930,1705668648713,-711.55,0.00022966,2]
[312144931,1705668648723,-1121.73,0.00022966,2]
[312144932,1705668648734,-806.25,0.00022966,2]
[312144933,1705668648745,-500.0,0.00022966,2]
[312144934,1705668648756,-824.36,0.00022966,2]
[312144935,1705668648767,-500.0,0.00022966,2]
[312144936,1705668648778,-500.0,0.00022966,2]
[312144937,1705668648789,-718.97,0.00022966,2]
[312144938,1705668648800,-822.25,0.00022966,2]
[312144939,1705668648812,-1067.73,0.00022966,2]
[312144940,1705668648823,-798.68,0.00022966,2]
[312144941,1705668648834,-500.0,0.00022966,2]
[312144942,1705668648845,-510.53,0.00022966,2]
[312144943,1705668648856,-980.03,0.00022966,2]
[312144944,1705668648867,-500.0,0.00022966,7]
[312144945,1705668648878,-518.79,0.00022966,2]
[312144946,1705668648890,-500.0,0.00022966,2]
[312144947,1705668648901,-500.0,0.00022966,2]
[312144948,1705668648913,-658.72,0.00022966,2]
[312144949,1705668648924,-952.02,0.00022966,2]
[312144950,1705668648935,-500.0,0.00022966,2]
[312144951,1705668648947,-856.89,0.00022966,2]
[312144952,1705668648957,-620.94,0.00022966,2]
[312144953,1705668648971,-586.12,0.00022966,2]
[312144954,1705668648981,-526.83,0.00022966,2]
[312144955,1705668648991,-1228.96,0.00022966,2]
[312144956,1705668649002,-920.35,0.00022966,2]
[312144957,1705668649013,-749.92,0.00022966,2]
[312144958,1705668649024,-1110.56,0.00022966,2]
[312144959,1705668649034,-1229.48,0.00022966,2]
[312144960,1705668649045,-500.0,0.00022966,2]
[312144961,1705668649056,-1138.0,0.00022966,2]
[312144962,1705668649066,-602.84,0.00022966,2]
[312144963,1705668649076,-1470.9,0.00022966,2]
[312144964,1705668649087,-1304.44,0.00022966,2]
[312144965,1705668649099,-939.86,0.00022966,2]
[312144966,1705668649111,-4340.48,0.00022966,2]
[312144967,1705668649122,-957.56,0.00022966,2]
[312144968,1705668649134,-500.0,0.00022966,2]
[312144969,1705668649144,-512.96427436,0.00022966,2]
[312144970,1705668649155,-2420.97,0.00022966,2]
[312144971,1705668649166,-534.94,0.00022966,2]
[312144972,1705668649177,-500.0,0.00022966,2]
[312144973,1705668649188,-937.03,0.00022966,2]
[312144974,1705668649198,-8530.23,0.00022966,2]
[312144975,1705668649210,-575.23,0.00022966,2]
[312144976,1705668649221,-687.96,0.00022966,2]
[312144977,1705668649231,-528.2,0.00022966,2]
[312144978,1705668649242,-574.32,0.00022966,2]
[312144979,1705668649253,-2182.35,0.00022966,2]
[312144980,1705668649263,-500.0,0.00022966,2]
[312144981,1705668649274,-814.48,0.00022966,2]
[312144982,1705668649285,-335.59,0.00022966,2]
[312144983,1705668649296,-1268.28,0.00022966,2]
[312144984,1705668649306,-583.17,0.00022966,2]
[312144985,1705668649317,-2102.76,0.00022966,2]
[312144986,1705668649328,-500.0,0.00022966,2]
[312144987,1705668649340,-759.77,0.00022966,2]
[312144988,1705668649351,-1264.98,0.00022966,2]
[312144989,1705668649361,-1175.92,0.00022966,2]
[312144990,1705668649372,-757.52,0.00022966,2]
[312144991,1705668649383,-665.6,0.00022966,2]
[312144992,1705668649394,-4547.59,0.00022966,2]
[312144993,1705668649405,-1305.23,0.00022966,2]